Cogmind - Beta 9.2 @@@ ROGUE MODE // 2019.11.11 @ 23:44:20 Player: Pitt Result: Destroyed by G-47 Trooper with Particle Gun Performance ------------- Evolutions (2) 1000 Regions Visited (4) 800 Robots Destroyed (52) 260 Value Destroyed (1222) 1222 Prototype IDs (4) 80 Alien Tech Used (0) 0 Bonus (11) 11 TOTAL SCORE: 3373 Bonus ------- High Alert Combat Kills 11 Cogmind --------- Core Integrity 0/550 Matter 600/600 Energy 100/100 System Corruption 0% Temperature Cool (9) Movement Core (250) Ox4 Location -8/Materials Parts ------- > --- POWER (1) -------- (None) > --- PROPULSION (3) --- (None) > --- UTILITY (5) ------ Medium Matter Pod High-capacity Matter Pod Improved Weapon Shielding Hacking Suite > --- WEAPON (2) ------- Advanced EMP Blaster > --- INVENTORY (4) ---- Aluminum Leg High-capacity Matter Pod (200) Visual Processing Unit Advanced EMP Blaster Peak State ------------ > --- POWER ------------ (None) > --- PROPULSION ------- Light Treads Aluminum Leg Improved Hover Unit > --- UTILITY ---------- Small Storage Unit Medium Matter Pod High-capacity Matter Pod Hacking Suite Tractor Beam > --- WEAPON ----------- Advanced Beam Rifle Katana > --- INVENTORY -------- High-capacity Matter Pod Structural Scanner Advanced EMP Blaster Advanced EMP Blaster [Rating: 19] Favorites ----------- Power Light Ion Engine Engine Light Ion Engine Propulsion Aluminum Leg Treads Light Treads Leg Aluminum Leg Wheel Wheel Hover Unit Improved Hover Unit Utility Small Storage Unit Device Tractor Beam Storage Small Storage Unit Processor Improved Targeting Computer Hackware Hacking Suite Protection Core Shielding Weapon Light Cannon Energy Gun Small Laser Energy Cannon Beam Cannon Ballistic Gun Assault Rifle Ballistic Cannon Light Cannon Launcher Advanced EMP Blaster Slashing Weapon Katana Build | -11 -10 -9 -9 -8 ------- Run | Scr Mat Mat Min Mat Slots Evolved 4 | . . 2 . 2 Power . | . . . . . Propulsion 1 | . . 1 . . Utility 3 | . . 1 . 2 Weapon . | . . . . . Parts Attached 48 | 7 4 2 9 26 Power 2 | 1 . . 1 . Engine 2 | 1 . . 1 . Core . | . . . . . Reactor . | . . . . . Propulsion 11 | 2 . 1 3 5 Treads 2 | . . 1 . 1 Leg 5 | 2 . . . 3 Wheel 3 | . . . 3 . Hover 1 | . . . . 1 Flight . | . . . . . Utility 14 | 2 1 1 3 7 Device 7 | 1 1 . 3 2 Storage 3 | 1 . 1 . 1 Processor 1 | . . . . 1 Hackware 1 | . . . . 1 Protection 2 | . . . . 2 Artifact . | . . . . . Weapon 21 | 2 3 . 2 14 Energy Gun 5 | 1 . . . 4 Energy Cannon 1 | . 1 . . . Ballistic Gun 1 | 1 . . . . Ballistic Cannon 8 | . 2 . 2 4 Launcher 5 | . . . . 5 Special Weapon . | . . . . . Impact Weapon . | . . . . . Slashing Weapon 1 | . . . . 1 Piercing Weapon . | . . . . . Special Melee Weapon . | . . . . . Unidentified Prototypes 2 | . . . . 2 Parts Lost 27 | . . . 6 21 Power 2 | . . . 1 1 Propulsion 9 | . . . 2 7 Utility 6 | . . . 1 5 Weapon 10 | . . . 2 8 Highest Loss Streak 11 | . . . 3 11 Average Slot Usage (%) 90 | . 100 90 96 75 Engine 9 | . 14 11 10 2 Treads 3 | . . 2 4 4 Leg 15 | . 28 22 10 5 Wheel 7 | . . . 15 6 Device 10 | . 14 11 10 5 Storage 19 | . 14 22 22 20 Hackware 1 | . . . . 6 Protection 1 | . . . . 4 Energy Gun 1 | . . . . 4 Energy Cannon 1 | . 1 11 1 . Ballistic Cannon 16 | . 25 11 20 5 Naked Turns . | . . . . . Heaviest Build 25 | 11 14 18 18 25 Greatest Support 30 | 20 20 20 30 30 Greatest Overweight (x) 6 | . . . 1 6 Average Overweight (x) . | . . . . . Largest Inventory Capacity 6 | 6 6 6 6 6 Average Capacity 5 | 5 6 6 6 5 Most Carried 6 | 6 6 6 6 6 Average Carried 5 | 3 5 5 5 5 Final Capacity 6 | 6 6 6 6 4 Final Carried 6 | 6 6 6 6 4 Class Distribution -------------------- 89% | Mutant 10% | Scavenger-Mutant Dominant Class ---------------- Mutant | -10/Materials Mutant | -9/Materials Mutant | -9/Mines Mutant | -8/Materials Resources | -11 -10 -9 -9 -8 ----------- Run | Scr Mat Mat Min Mat Matter Collected 1677 | 318 267 132 481 479 Remotely 1249 | 165 267 132 333 352 Salvage Created 1451 | 212 205 171 187 676 Parts 109 | 23 12 9 22 43 Haulers Intercepted 1 | . . 1 . . Recyclers Shooed 1 | . . . . 1 Parts Field Recycled . | . . . . . Retrieved Matter . | . . . . . Parts Self-Destructed . | . . . . . Prevented . | . . . . . Kills | -11 -10 -9 -9 -8 ------- Run | Scr Mat Mat Min Mat Combat Hostiles Destroyed 32 | . 7 3 4 18 Melee 2 | . . . . 2 Guns 1 | . . . . 1 Cannons 20 | . 7 3 4 6 AOE 9 | . . . . 9 Classes Destroyed 10 | 2 2 1 1 4 Worker 2 | . . . . 2 Tunneler 10 | 7 . . 3 . Hauler 1 | . . 1 . . Recycler 4 | 1 . . 2 1 Watcher 3 | . 1 . . 2 Swarmer 9 | . . . 3 6 Grunt 18 | . 7 3 . 8 Duelist 1 | . . . . 1 Sentry 2 | . . . . 2 Hunter 1 | . . . . 1 Best Kill Streak 9 | 2 2 4 3 9 Combat Bots Only 8 | . 2 3 3 8 Max Kills in Single Turn 5 | 1 1 1 1 5 Gunslinging . | . . . . . Exploded 3 | . . . . 3 Melee 1 | . . . . 1 Uniques/NPCs Destroyed 1 | . . . 1 . YI-UF0 (-9/Mines) Combat | -11 -10 -9 -9 -8 -------- Run | Scr Mat Mat Min Mat Damage Taken 3294 | . 246 76 606 2366 Core 746 | . 81 11 104 550 Absorbed by Shields . | . . . . . Core Remaining (%) 79 | 100 67 . 71 . Volleys Fired 107 | 16 30 11 16 34 Largest 2 | 2 2 1 2 2 Hottest 88 | 60 70 60 70 88 Shots Fired 176 | 32 60 11 31 42 Gun 35 | 32 . . . 3 Cannon 134 | . 60 11 31 32 Launcher 7 | . . . . 7 Special . | . . . . . Kinetic 138 | 16 60 . 30 32 Thermal 31 | 16 . 11 1 3 Explosive 2 | . . . . 2 Electromagnetic 5 | . . . . 5 Robot Hit Streak 9 | 7 9 4 6 7 Robot Miss Streak 8 | 3 8 1 7 4 Penetration Max . | . . . . . Secondary Targets . | . . . . . Shots Hit Robots 112 | 20 26 8 14 44 Core Hits 83 | 9 11 4 9 50 Critical Hits 2 | 1 . . . 1 Critical Kills 1 | 1 . . . . Critical Parts Destroyed 1 | . . . . 1 Melee Attacks 10 | . . . . 10 Impact . | . . . . . Slashing 10 | . . . . 10 Piercing . | . . . . . Sneak Attacks 3 | . . . . 3 Combat Hostiles . | . . . . . Follow-up Attacks . | . . . . . Damage Inflicted 3069 | 227 488 141 257 1956 Guns 283 | 227 . . . 56 Cannons 1231 | . 488 141 257 345 Explosions 1021 | . . . . 1021 Melee 502 | . . . . 502 Ramming 32 | . . . . 32 Kinetic 1154 | 81 488 . 240 345 Thermal 471 | 146 . 141 17 167 Explosive 314 | . . . . 314 Electromagnetic 596 | . . . . 596 Impact . | . . . . . Slashing 502 | . . . . 502 Piercing . | . . . . . Highest Corruption 2 | . . . 2 . Average Corruption 2 | . . . 2 . Corruption Purged . | . . . . . Effects 6 | . . . 6 . Message Errors 3 | . . . 3 . Energy Discharges 1 | . . . 1 . Data Loss (minor) 1 | . . . 1 . Targeting Errors 1 | . . . 1 . Overload Shots . | . . . . . Overflow Damage 193 | . . . . 193 Projectiles . | . . . . . Explosions 13 | . . . . 13 Melee 180 | . . . . 180 Knockbacks 13 | . 8 . 1 4 Impact 1 | . . . . 1 Kinetic 12 | . 8 . 1 3 Secondary . | . . . . . Self-Inflicted Damage 215 | . . . . 215 Shots 9 | . . . . 9 Rammed 10 | . . . . 10 Targets Rammed 22 | . . . . 22 Kicked 12 | . . . . 12 Crushed . | . . . . . Highest Temperature 130 | 20 96 130 23 27 Average Temperature 29 | 15 28 54 21 11 Received Heat Transfer 1044 | . 138 24 . 882 Siege Activations . | . . . . . Robots Corrupted . | . . . . . Combat Hostiles . | . . . . . Parts Fried 3 | . . . . 3 Impact Corruptions . | . . . . . Robots Melted . | . . . . . Combat Hostiles . | . . . . . Parts Melted . | . . . . . Heat Transferred 1019 | 325 . 296 37 361 Parts Sabotaged . | . . . . . Parts Stolen . | . . . . . Parts Stripped . | . . . . . Power Chain Reactions 2 | . . . . 2 Missiles Intercepted . | . . . . . Alert | -11 -10 -9 -9 -8 ------- Run | Scr Mat Mat Min Mat Peak Influence 392 | 40 248 146 86 392 Average Influence 106 | 17 140 74 36 244 Maximum Alert Level 1 | . 1 . . 1 Low Security (%) 79 | 100 65 100 100 40 Level 1 20 | . 34 . . 59 Level 2 . | . . . . . Level 3 . | . . . . . Level 4 . | . . . . . Level 5 . | . . . . . High Security . | . . . . . Max Security . | . . . . . Squads Dispatched 7 | . 2 1 . 4 Investigation 1 | . . 1 . . Extermination . | . . . . . Reinforcement 5 | . 2 . . 3 Assault . | . . . . . Garrison 1 | . . . . 1 Intercept . | . . . . . Construction Impeded 2 | . . . . 2 Haulers Reinforced . | . . . . . Stealth | -11 -10 -9 -9 -8 --------- Run | Scr Mat Mat Min Mat Distress Signals . | . . . . . Communications Jammed . | . . . . . Distress Signals . | . . . . . Times Spotted 67 | . 17 8 12 30 Peak Tracking Total 8 | . 3 4 4 8 Tactical Retreats 12 | . 3 . 4 5 Traps | -11 -10 -9 -9 -8 ------- Run | Scr Mat Mat Min Mat Traps Triggered 1 | . . 1 . . Indirectly . | . . . . . Trap Hack Attempts . | . . . . . Triggered . | . . . . . Disarmed . | . . . . . Reprogrammed . | . . . . . Reused . | . . . . . Traps Extracted . | . . . . . Installed . | . . . . . Triggered 1 | . . . 1 . Machines | -11 -10 -9 -9 -8 ---------- Run | Scr Mat Mat Min Mat Machines Disabled 2 | . 1 1 . . Max in Single Turn 1 | . 1 1 . . Machines Sabotaged . | . . . . . Garrisons Compromised . | . . . . . Overloaded Fab Kills . | . . . . . Fab Network Shutdowns . | . . . . . Hacking | -11 -10 -9 -9 -8 --------- Run | Scr Mat Mat Min Mat Machines Accessed 10 | . 5 1 1 3 Terminals 8 | . 4 1 1 2 Fabricators . | . . . . . Repair Stations . | . . . . . Recycling Units 1 | . 1 . . . Scanalyzers 1 | . . . . 1 Garrison Access . | . . . . . Total Hacks 24 | . 15 2 2 5 Successful 13 | . 7 2 1 3 Failed 11 | . 8 . 1 2 Catastrophic 1 | . 1 . . . Database Lockouts . | . . . . . Manual 4 | . 2 . 2 . Terminals 18 | . 11 2 2 3 Fabricators . | . . . . . Repair Stations . | . . . . . Recycling Units 4 | . 4 . . . Scanalyzers 2 | . . . . 2 Garrison Access . | . . . . . Terminal Hacks 9 | . 5 2 1 1 Record 1 | . . . . 1 Prototype ID Bank 1 | . 1 . . . Branch Access Points 2 | . . 1 1 . Unreport Threat 1 | . 1 . . . Dispatch Records 1 | . 1 . . . Maintenance Status 1 | . 1 . . . Registered Components 2 | . 1 1 . . Fabricator Hacks . | . . . . . Repair Station Hacks . | . . . . . Recycling Unit Hacks 2 | . 2 . . . Report Inventory 1 | . 1 . . . Retrieve Components 1 | . 1 . . . Scanalyzer 2 | . . . . 2 Insert Component 1 | . . . . 1 Analyze 1 | . . . . 1 Garrison Access Hacks . | . . . . . Unauthorized Hacks . | . . . . . Terminals . | . . . . . Fabricators . | . . . . . Repair Stations . | . . . . . Recycling Units . | . . . . . Scanalyzers . | . . . . . Garrison Access . | . . . . . Data Cores Recovered . | . . . . . Used . | . . . . . Hacking Detections 9 | . 5 . 1 3 Full Trace Events 1 | . . . 1 . Feedback Events . | . . . . . Feedback Blocked . | . . . . . Robot Schematics Acquired . | . . . . . Robots Built . | . . . . . Matter . | . . . . . Time . | . . . . . Total Robot Build Rating . | . . . . . Part Schematics Acquired 1 | . . . . 1 Parts Built . | . . . . . Matter . | . . . . . Time . | . . . . . Total Part Build Rating . | . . . . . Parts Repaired . | . . . . . Time . | . . . . . Parts Recycled . | . . . . . Recycled Matter . | . . . . . Retrieved Matter . | . . . . . Retrieved Components 1 | . 1 . . . Parts Scanalyzed 1 | . . . . 1 Part Schematics Acquired 1 | . . . . 1 Parts Damaged . | . . . . . Bothacking | -11 -10 -9 -9 -8 ------------ Run | Scr Mat Mat Min Mat Used RIF Installer . | . . . . . Robots Hacked . | . . . . . Non-combat . | . . . . . Combat . | . . . . . Robot Hacks Applied . | . . . . . Relay Couplers Released . | . . . . . Robots Rewired . | . . . . . Allies Hacked . | . . . . . Hacks Repelled . | . . . . . Allies | -11 -10 -9 -9 -8 -------- Run | Scr Mat Mat Min Mat Total Allies . | . . . . . Largest Group . | . . . . . Highest-Rated Group . | . . . . . Highest-Rated Ally . | . . . . . Total Orders . | . . . . . Ally Attacks . | . . . . . Total Damage . | . . . . . Kills . | . . . . . Allies Corrupted . | . . . . . Allies Melted . | . . . . . Intel | -11 -10 -9 -9 -8 ------- Run | Scr Mat Mat Min Mat Robot Analysis Total . | . . . . . Derelict Logs Recovered . | . . . . . Drone Launches . | . . . . . Drone Recoveries . | . . . . . Exploration | -11 -10 -9 -9 -8 ------------- Run | Scr Mat Mat Min Mat Turns Passed 1894 | 288 393 180 593 440 Spaces Moved 1213 | 198 212 123 491 189 Core 40 | 19 . . . 21 Treads 54 | . . . . 54 Legs 777 | 179 212 123 235 28 Wheels 342 | . . . 256 86 Hover . | . . . . . Flight . | . . . . . Fastest Speed 50 | 50 120 120 80 80 Average Speed 113 | 113 120 120 101 130 Slowest Speed 350 | 120 120 120 150 350 Overloaded Moves . | . . . . . Propulsion Burnouts . | . . . . . Robots Hopped . | . . . . . Cave-ins Triggered . | . . . . . Exploration Rate (%) 35 | 9 52 15 84 16 Regions Visited 4 Branch Regions 1 Pre-discovered Areas . | . . . . . Known Exits Taken 1 | . . 1 . . Unknown Exits Taken 3 | 1 1 . 1 . Scrap Searched 3 | . . . 3 . Spaces Dug . | . . . . . Terrain Destroyed 10 | . . . . 10 Melee . | . . . . . Projectile . | . . . . . AOE 10 | . . . . 10 Actions | -11 -10 -9 -9 -8 --------- Run | Scr Mat Mat Min Mat Total 1533 | 226 292 144 553 318 Wait 83 | . 33 6 24 20 Move 1209 | 197 211 122 490 189 Hop . | . . . . . Pick Up 31 | 6 6 2 8 9 Fast Attach 25 | 7 2 1 3 12 Attach 15 | . . 1 4 10 Detach 2 | . . . 1 1 Swap 8 | . 2 . 2 4 Drop 21 | . 8 1 5 7 Fire 107 | 16 30 11 16 34 Melee 10 | . . . . 10 Ram . | . . . . . Kick 22 | . . . . 22 Crush . | . . . . . Escape Stasis . | . . . . . Rewire . | . . . . . Trap . | . . . . . Miscellaneous . | . . . . . Route ------- -11/Scrapyard -10/Materials -9/Materials (discovered 3 exits: *Min / Sto x2) -9/Mines (discovered 2 exits: *Mat x2) -8/Materials History --------- Turn | Location | Event 9 | -11/Scrapyard | Discovered new exit (range 15) 289 | -11/Scrapyard | Entered Materials 325 | -10/Materials | Build established: Mutant 664 | -10/Materials | Discovered new exit (range 9) 682 | -10/Materials | Entered another Materials area 682 | -9/Materials | Evolved 2 slots: Propulsion x1, Utility x1 844 | -9/Materials | Discovered new exit (range 16) 849 | -9/Materials | Identified exit to Mines 849 | -9/Materials | Identified exit to Storage 862 | -9/Materials | Entered Mines 865 | -9/Mines | Assisted by bots powering up and referring to "LRC-V3" 1148 | -9/Mines | Lost 3 parts (2n1w) 1405 | -9/Mines | Destroyed YI-UF0 1413 | -9/Mines | Discovered new exit (range 14) 1415 | -9/Mines | Discovered new exit (range 15) 1455 | -9/Mines | Entered Materials 1455 | -8/Materials | Evolved 2 slots: Utility x2 1567 | -8/Materials | Destroyed 8 combat bots 1640 | -8/Materials | Core integrity fell below 50% 1659 | -8/Materials | Lost 11 parts (1p3n3u4w) 1810 | -8/Materials | Lost 3 parts (1n2w) 1818 | -8/Materials | Garrison activated, responded to threat 1869 | -8/Materials | Core integrity fell below 20% 1895 | -8/Materials | Destroyed by G-47 Trooper with Particle Gun Last Messages --------------- 01848_ U-05 Engineer lays Concrete. 01848_ Acquired Adv. EMP Blaster. 01849_ U-05 Engineer lays Concrete. 01850_ Acquired 29 matter. 01850_ U-05 Engineer lays Concrete. 01855_ Acquired Imp. Weapon Shielding. 01855_ U-05 Engineer lays Concrete. 01862_ Dropped Aluminum Leg. 01862_ U-05 Engineer lays Concrete. 01863_ Aluminum Leg destroyed. 01863_ U-05 Engineer lays Concrete. 01875_ Lgt. Treads destroyed. 01876_ U-05 Engineer lays Concrete. 01876_ U-05 Engineer repairs door. 01877_ Acquired 2 matter. 01878_ U-05 Engineer lays Concrete. 01888_ R-06 Scavenger collects Aluminum Leg. 01890_ Particle Gun destroyed. 01892_ R-06 Scavenger collects Aluminum Leg. 01894_ Aluminum Leg destroyed. Map ----- +----------------------------------------------------+ | ?????????????????????????????????????????????????? | | ?????????????????????????????????????????????????? | | ?????????????????????????????????????????????????? | | ?????????????????????????????????????????????????? | | ?????????????????????????????????????????????????? | | ?????????????????????????????????????????????????? | | ?????????????????????????????????????????????????? | | ?????????????????????????????????????????????????? | | ?????????????????????????????????????????????????? | | ?????????????????????????????????????????????????? | | ?????????????????????????????????????????????????? | | ?????????????????????????????????????????????????? | | ?????????????????????????????????????????????????? | | ?????????????????????????????????????????????????? | | ?????????????????????????????????????????????????? | | ?????????????????????????????????????????????????? | | ?????????????????????????????????????????????????? | | ?????????????????????????????????????????????????? | | ?????????????????????########????????????????????? | | ?????????????????????# ! ! #????????????????????? | | ???????? ??????????# #????????????????????? | | ???????# ??????????# #????????????????????? | | ??????## ##????????# #????????????????????? | | ??????# #????????# [ #????????????????????? | | ?????? #?????????? ?????????????????????? | | ??????? #############@############ ?????????? | | ??????? "????????? | | ???+### ########## gg ????????? | | # =## ## ## ????????? | | # ## ## #####/######+#######?????????? | | # """ ## ## "" #?# %g% #????????????????????? | | # """ ## ## """ #?#=r #????????????????????? | | # """ ## ## S" #?# #????????????????????? | | # ## ## #?# g #????????????????????? | | ######## ###/######?#! =%%#????????????????????? | | # =!#####%!!= #????????????????????? | | # % % +% #????????????????????? | | # =#####+#####????????????????????? | | # ###+#########!#???# #????????????????????????? | | # # #????# #???# #????????????????????????? | | # # ##???#/#???# #????????????????????????? | | # # #??? ???# ????????????????????????? | | # # = *##???" ???# ????????????????????????? | | # # ]=#????T ???# ????????????????????????? | | # # #????" ???# ????????????????????????? | | + ########???? ???+ ????????????????????????? | | # #??????????? ???? ????????????????????????? | | # ##########?? ???##????????????????????????? | | # # #?? ?????????????????????????????? | | # # """ #?? ?????????????????????????????? | +----------------------------------------------------+ Best States ------------- Heat Dissipation 31 Energy Generation 10 Energy Capacity 125 Matter Stores 600 Matter Capacity 600 Sight Range 16 Terrain Scan Density 10 Core Shielding 20 Weapon Shielding 66 Evasion (%) 50 Targeting Accuracy 6 Recoil Reduction 1 Offensive Hacking 10 Item Schematics ----------------- Adv. EMP Blaster | -8/Materials | Scanalyzed Robot Schematics ------------------ None Fabricated ------------ Nothing Alien Tech Used ----------------- None Achievements -------------- None Challenges ------------ None Game ------ Seed MolecularOpticalCarapace Manual? 0 Play Time 00:27:40 Cumulative 41.1 hours Start 2019.11.11 @ 23:16:36 End 2019.11.11 @ 23:44:20 Sessions 1 Manual Loads 0 Difficulty Rogue Special Mode None Game No. 82 Rogue 82 Adventurer 0 Explorer 0 Win Type - Total 0 Types 0/0/0/0/0/0/0 Lore% 23 Gallery% 41 Achievement% 23 Wizard Run 0 Options --------- ASCII 0 Keyboard 0 Movement Mouse Keybinds 0 Fullscreen 1 Font 12/Smallcaps Map View 83x54 Tactical HUD 1 Map Filters NONE Filters NONE Steam 1 RUN: fc95de2d-220a-4387-82b7-47c0aac34af6